[Event "NY Presidents Day Schiller-C 2024"]
[Site "New York"]
[Date "2024.02.19"]
[Round "7.7"]
[White "Podavonov, Alisher"]
[Black "Shangin, Lev"]
[Result "1/2-1/2"]
[ECO "A05"]
[WhiteElo "2175"]
[BlackElo "1866"]
[Annotator "RC"]
[PlyCount "89"]
[EventDate "2024.02.14"]
[EventType "schev"]
[EventCountry "USA"]
[SourceTitle "playchess.com"]
[Source "ChessBase"]
[SourceQuality "1"]
[TimeControl "5400+30"]

1. Nf3 {[%emt 0:00:01]} Nf6 {[%emt 0:00:27]} 2. g3 {[%emt 0:00:07]} b5 {[%emt 0:00:59]} 3. Bg2 {[%emt 0:00:52]} Bb7 {[%emt 0:00:30]} 4. O-O {[%emt 0:00:11]} c5 {[%emt 0:00:45]} 5. d3 {[%emt 0:00:44]} d6 {[%emt 0:01:15]} 6. e4 {[%emt 0:00:39]} e6 {[%emt 0:00:19]} 7. Nbd2 {[%emt 0:03:03]} Be7 {[%emt 0:01:33]} 8. Re1 {[%emt 0:00:48]} Nc6 {[%emt 0:01:56]} 9. c3 {[%emt 0:01:49]} Rc8 {[%emt 0:03:53]} 10. a3 {[%emt 0:00:57]} Qb6 {[%emt 0:03:15]} 11. b4 {[%emt 0:01:12]} cxb4 {[%emt 0:02:36]} 12. axb4 {[%emt 0:00:19]} Ne5 {[%emt 0:01:03]} 13. Nxe5 {[%emt 0:01:04]} dxe5 {[%emt 0:00:14]} 14. Bb2 {[%emt 0:02:43]} O-O {[%emt 0:01:15]} 15. Nb3 {[%emt 0:01:57]} Rfd8 {[%emt 0:01:56]} 16. Qe2 {[%emt 0:03:31]} a6 {[%emt 0:02:55]} 17. Bf1 {[%emt 0:02:35]} Rc7 {[%emt 0:03:37]} 18. Qe3 {[%emt 0:05:04]} Qxe3 {[%emt 0:01:21]} 19. Rxe3 {[%emt 0:00:19]} Nd7 {[%emt 0:00:47]} 20. Na5 {[%emt 0:04:07]} Ba8 {[%emt 0:02:21]} 21. f4 {[%emt 0:05:37]} Bf6 {[%emt 0:05:59]} 22. c4 {[%emt 0:15:00]} bxc4 {[%emt 0:06:10]} 23. Nxc4 {[%emt 0:01:51]} exf4 {[%emt 0:03:40]} 24. Bxf6 {[%emt 0:00:43]} Nxf6 {[%emt 0:00:13]} 25. gxf4 {[%emt 0:00:15]} Rb7 {[%emt 0:01:32]} 26. Rxa6 {[%emt 0:01:47]} Rxb4 {[%emt 0:00:30]} 27. Be2 {[%emt 0:11:09]} Bb7 {[%emt 0:04:27]} 28. Ra1 {[%emt 0:03:30]} Ra8 {[%emt 0:12:06]} 29. Rxa8+ {[%emt 0:00:20]} Bxa8 {[%emt 0:00:06]} 30. Rg3 {[%emt 0:01:06]} Rb1+ {[%emt 0:01:50]} 31. Kg2 {[%emt 0:04:37]} Kf8 {[%emt 0:01:13]} 32. Rg5 {[%emt 0:05:22]} Nd7 {[%emt 0:05:10]} 33. Ra5 {[%emt 0:03:55]} Rb8 {[%emt 0:02:29]} 34. Ra7 {[%emt 0:00:37]} Nc5 {[%emt 0:01:12]} 35. Nd6 {[%emt 0:04:10]} f5 {[%emt 0:06:08]} 36. Rf7+ {[%emt 0:03:01]} Kg8 {[%emt 0:00:14]} 37. Rc7 {[%emt 0:00:12]} fxe4 {[%emt 0:01:26]} 38. Rxc5 {[%emt 0:00:44]} exd3+ {[%emt 0:00:08]} 39. Kf2 {[%emt 0:01:56]} dxe2 {[%emt 0:00:10]} 40. Kxe2 {[%emt 0:00:25]} Rd8 {[%emt 0:01:17]} 41. Rc8 {[%emt 0:00:09]} Rxc8 {[%emt 0:00:16]} 42. Nxc8 {[%emt 0:00:02]} Kf7 {[%emt 0:00:21]} 43. Kf2 {[%emt 0:00:58]} Kf6 {[%emt 0:00:24]} 44. h4 {[%emt 0:00:33]} Bd5 {[%emt 0:00:31]} 45. Kg3 {[%emt 0:00:37]} 1/2-1/2

[Event "NY Presidents Day Schiller-C 2024"]
[Site "New York"]
[Date "2024.02.19"]
[Round "7.8"]
[White "Lapshun, Yury"]
[Black "Pagan, Jonathan"]
[Result "1-0"]
[ECO "D03"]
[WhiteElo "2337"]
[BlackElo "2018"]
[Annotator "TA"]
[PlyCount "65"]
[EventDate "2024.02.14"]
[EventType "schev"]
[EventCountry "USA"]
[SourceTitle "playchess.com"]
[Source "ChessBase"]
[SourceQuality "1"]
[TimeControl "5400+30"]

{[%evp 9,65,0,0,0,8,-5,0,-39,-35,-27,-7,-26,-21,-44,-32,-39,0,0,4,8,6,0,6,0,112,109,129,139,129,125,193,202,237,250,254,244,291,274,284,280,285,233,250,266,275,212,239,236,275,285,313,305,370,380,477,481,444,416]} 1. d4 {[%emt 0:18:36]} d5 {[%emt 0:00:14]} 2. Nf3 {[%emt 0:00:06]} Nf6 {[%emt 0:00:05]} 3. Bg5 {[%emt 0:00:24]} Ne4 {[%emt 0:00:06]} 4. Bh4 {[%emt 0:00:10]} c5 {[%emt 0:00:08]} 5. dxc5 {[%emt 0:00:56]} Nc6 {[%emt 0:00:09][%cal Of7f6]} 6. e3 {[%emt 0:00:12]} g6 {[%emt 0:00:31][%cal Of8g7]} 7. Nbd2 {[%emt 0:02:02][%cal Bb1d2,Bd2b3,Bb3d4,Bd4b5][%mdl 32] Black must now prevent Nxe4.} Nxc5 {[%emt 0:01:17]} 8. Nb3 {[%emt 0:00:53] The position is equal.} Ne4 {[%emt 0:08:18]} 9. Bd3 {[%emt 0:00:19]} Nd6 {[%emt 0:00:51]} 10. O-O {[%emt 0:00:44]} Bg7 {[%emt 0:00:20]} 11. Nfd4 {[%emt 0:01:00]} O-O {[%emt 0:07:57]} 12. Qf3 {[%emt 0:03:13]} Nxd4 {[%emt 0:04:30]} 13. Nxd4 {[%emt 0:00:44]} Nc4 {[%emt 0:22:33]} 14. Bxc4 {[%emt 0:01:02]} dxc4 {[%emt 0:00:03]} 15. Rad1 {[%emt 0:03:28]} Qd7 {[%emt 0:06:38] Prevents Nc6} 16. a4 {[%emt 0:01:49] aiming for Nb5.} e5 {[%emt 0:01:59]} (16... f6 $1 $11) 17. Nb5 $16 {[%emt 0:00:21] White now steadily converts the win.} Qc6 {[%emt 0:08:01] Black is weak on the dark squares} 18. Be7 {[%emt 0:06:29] White is much more active. The black rooks are passive.} Qxf3 {[%emt 0:05:30]} 19. gxf3 {[%emt 0:00:02]} Bf5 {[%emt 0:04:58]} 20. Bxf8 $18 {[%emt 0:01:41]} Rxf8 {[%emt 0:00:17]} 21. e4 {[%emt 0:00:23]} ({Don't play} 21. Nxa7 $6 Bxc2 22. Rd7 Rb8) 21... Bh3 {[%emt 0:00:03] [#]} 22. Rfe1 $1 {[%emt 0:00:44]} f5 {[%emt 0:00:58]} 23. Nd6 {[%emt 0:04:02]} fxe4 {[%emt 0:00:24]} 24. Nxe4 {[%emt 0:02:32]} (24. Nxc4 exf3 25. Nd6 (25. Nxe5 Rf5 $11) 25... Rf6 $16) 24... Bh6 {[%emt 0:01:00]} 25. Ng3 {[%emt 0:00:55]} Bf4 {[%emt 0:00:40]} 26. Rd5 {[%emt 0:01:52]} h5 {[%emt 0:02:12]} 27. Ne2 {[%emt 0:02:51] Hoping for Nxf4.} Bh6 {[%emt 0:01:42]} 28. Rxe5 {[%emt 0:00:31]} Rxf3 {[%emt 0:00:10]} 29. Nd4 {[%emt 0:00:14]} Rf4 {[%emt 0:01:01] [#] Strongly threatening ...Rg4+.} 30. R1e4 {[%emt 0:00:16]} Rf6 {[%emt 0:01:49]} 31. Re8+ {[%emt 0:00:27]} Kh7 {[%emt 0:00:09]} 32. R4e7+ {[%emt 0:00:57]} Bg7 {[%emt 0:00:06]} 33. Ne6 {[%emt 0:01:12] Prevents Rf4.   Weighted Error Value: White=0.10 (very precise) /Black=0.26 (precise) .  Mistake:       	---       	Black=2      Inaccurate:     	White=1     	Black=1      OK:         	White=10    	Black=7      Best:        	White=2     	Black=2      Strong:       	White=1     	---} 1-0

[Event "NY Presidents Day Schiller-C 2024"]
[Site "New York"]
[Date "2024.02.19"]
[Round "7.9"]
[White "Campos Jimenez, Augusto Cesar"]
[Black "Ho, Carter"]
[Result "1/2-1/2"]
[ECO "B45"]
[WhiteElo "2288"]
[BlackElo "2180"]
[Annotator "TA"]
[PlyCount "45"]
[EventDate "2024.02.14"]
[EventType "schev"]
[EventCountry "USA"]
[SourceTitle "playchess.com"]
[Source "ChessBase"]
[SourceQuality "1"]
[TimeControl "5400+30"]

{[%evp 11,45,16,2,20,-2,-2,10,-19,0,1,0,-24,-10,-21,36,15,25,27,24,20,20,41,37,0,0,0,0,0,0,0,0,0,0,0,0,0]} 1. e4 {[%emt 0:13:32]} c5 {[%emt 0:00:12]} 2. Nf3 {[%emt 0:00:09]} e6 {[%emt 0:00:09]} 3. Nc3 {[%emt 0:00:08]} Nc6 {[%emt 1:31:39]} 4. d4 {[%emt 0:00:05]} cxd4 {[%emt 0:00:00]} 5. Nxd4 {[%emt 0:00:04]} Nf6 {[%emt 0:00:00]} 6. a3 {[%emt 0:00:24]} Be7 {[%emt 0:00:00]} 7. Nxc6 {[%emt 0:00:53]} bxc6 {[%emt 0:00:00]} 8. e5 {[%emt 0:00:05]} Nd5 {[%emt 0:00:00]} 9. Ne4 {[%emt 0:00:05]} Qc7 {[%emt 0:00:00]} 10. f4 {[%emt 0:00:20]} Qb6 {[%emt 0:00:00]} 11. Qf3 {[%emt 0:01:13]} f5 {[%emt 0:00:00]} 12. Nf2 {[%emt 0:01:11]} Bb7 {[%emt 0:00:00]} ({Black should play} 12... Bc5 $11) 13. c4 $14 {[%emt 0:04:02]} Nc7 {[%emt 0:00:00]} 14. Be2 {[%emt 0:04:59][%cal Bf1e2,Be2h5,Bh5f3][%mdl 32]} O-O {[%emt 0:00:00]} 15. O-O {[%emt 0:02:24]} d5 {[%emt 0:00:00]} 16. exd6 {[%emt 0:01:50]} Bxd6 {[%emt 0:00:00]} 17. Qg3 {[%emt 0:03:07]} Rf6 {[%emt 0:00:00] The position is equal.} 18. Bh5 {[%emt 0:06:46]} Rh6 {[%emt 0:00:00]} 19. Be3 {[%emt 0:12:00]} c5 {[%emt 0:00:00]} 20. Bf3 {[%emt 0:00:16]} Rg6 {[%emt 0:00:00]} (20... Qxb2 $2 {loses.} 21. Rab1 Qa2 22. Bxb7 $18 (22. Rxb7 Rg6 $18)) 21. Qh3 {[%emt 0:00:04]} Rh6 {[%emt 0:00:00]} 22. Qg3 {[%emt 0:00:01]} Rg6 $1 {[%emt 0:00:00]} (22... Qxb2 $2 {perishes.} 23. Rab1 Qxa3 24. Bxb7 $18) 23. Qh3 {[%emt 0:48:22] Weighted Error Value: White=0.06 (flawless) /Black=0.07 (flawless) .  Mistake:       	---       	Black=1      Inaccurate:     	White=2     	---        OK:         	White=10    	Black=5      Best:        	White=2     	Black=1      Strong:       	---       	Black=1} 1/2-1/2

[Event "NY Presidents Day Schiller-C 2024"]
[Site "New York"]
[Date "2024.02.19"]
[Round "8.1"]
[White "Meduri, Aakaash"]
[Black "Czebe, Attila"]
[Result "0-1"]
[ECO "A07"]
[WhiteElo "1956"]
[BlackElo "2346"]
[Annotator "TA"]
[PlyCount "66"]
[EventDate "2024.02.14"]
[EventType "schev"]
[EventCountry "USA"]
[SourceTitle "playchess.com"]
[Source "ChessBase"]
[SourceQuality "1"]
[TimeControl "5400+30"]

{[%evp 14,66,-28,-22,0,-12,-16,-6,-21,-20,12,-9,60,-15,54,-23,0,-42,-56,-46,-12,-4,0,-14,-2,-26,-27,-129,-41,-75,-72,-79,-75,-75,12,8,17,-9,-8,-201,-187,-301,-263,-589,-551,-1333,-1354,-1308,-1186,-942,-904,-1658,-1237,-29994,-29995]} 1. Nf3 {[%emt 0:03:32]} g6 {[%emt 0:07:37]} 2. g3 {[%emt 0:00:46]} Bg7 {[%emt 0:00:04]} 3. Bg2 {[%emt 0:01:24]} e5 {[%emt 0:00:07]} 4. d3 {[%emt 0:00:22]} d5 {[%emt 0:00:07][%cal Bd7d5,Bd5d4][%mdl 32]} 5. O-O {[%emt 0:00:35]} Ne7 {[%emt 0:00:05]} 6. e4 {[%emt 0:01:12]} O-O {[%emt 0:01:12]} 7. Nc3 {[%emt 0:02:49]} d4 {[%emt 0:04:18]} 8. Ne2 {[%emt 0:00:28]} h6 {[%emt 0:00:14]} 9. Nd2 {[%emt 0:06:39]} c5 {[%emt 0:02:25]} 10. f4 {[%emt 0:01:11]} Nbc6 {[%emt 0:00:31] The position is equal.} 11. a4 {[%emt 0:07:09]} Kh7 {[%emt 0:03:07]} 12. h3 {[%emt 0:01:02][%cal Of4f5]} f6 {[%emt 0:01:29]} (12... f5 $11) 13. Kh2 {[%emt 0:04:48]} (13. f5 $14) 13... Be6 {[%emt 0:01:24]} (13... Kh8 $11) 14. Nf3 {[%emt 0:09:16]} ({White should try} 14. f5 $1 $14 Bf7 (14... gxf5 15. exf5 Bd5 16. Bxd5 $16) 15. g4) 14... c4 {[%emt 0:01:28]} 15. Nh4 {[%emt 0:03:11]} cxd3 {[%emt 0:01:55]} (15... g5 {feels hotter.} 16. fxg5 hxg5 17. Nf5 Rh8) 16. cxd3 {[%emt 0:00:59]} exf4 {[%emt 0:03:03]} 17. gxf4 {[%emt 0:01:31]} f5 {[%emt 0:00:44]} 18. Rg1 {[%emt 0:04:18]} Qc7 {[%emt 0:05:48]} 19. Kh1 {[%emt 0:07:39]} Nb4 {[%emt 0:01:32]} 20. b3 {[%emt 0:10:31]} (20. e5 $1 $11) 20... Nc2 {[%emt 0:08:23] Black is much more active.} ({Black should play} 20... fxe4 $17 21. Bxe4 Bd5 (21... Bxh3 22. Bd2 $16)) 21. Ra2 {[%emt 0:02:15]} Ne3 {[%emt 0:04:24]} (21... Bxb3 22. Rb2 Bxa4 23. exf5 $14) 22. Bxe3 {[%emt 0:01:29]} dxe3 {[%emt 0:00:04]} 23. e5 {[%emt 0:02:13] Repels Bf6} Rfd8 {[%emt 0:01:05]} (23... Rad8 $17 24. d4 g5) 24. d4 $11 {[%emt 0:03:20]} Rac8 {[%emt 0:00:58]} 25. Qb1 {[%emt 0:03:03]} Qb6 $36 {[%emt 0:05:10][%cal Od8d7][%mdl 2048] Black has the initiative.} 26. Rb2 $2 {[%emt 0:00:46] [#] This move loses the game for White.} (26. Qd3 $11) 26... Rxd4 $1 $19 {[%emt 0:01:44][%cal Ob6b4]} 27. Nxd4 {[%emt 0:03:33]} (27. Nf3 $142 Rd7 28. Qe1) 27... Qxd4 {[%emt 0:00:08]} 28. Bxb7 $2 {[%emt 0:03:07]} (28. Rc2 {is more resistant.}) 28... Qxf4 {[%emt 0:02:38]} 29. Bxc8 {[%emt 0:03:26]} Bd5+ {[%emt 0:00:11]} 30. Rgg2 {[%emt 0:01:03]} Qxh4 {[%emt 0:00:17]} 31. Kg1 {[%emt 0:02:21]} Bxe5 {[%emt 0:00:37][%cal Oh4h3] [#] ( -> ...Qxh3!). A strong pair of Bishops.} 32. Ba6 {[%emt 0:03:00]} Bxb2 {[%emt 0:00:36]} 33. Rxb2 {[%emt 0:00:50]} Qxh3 {[%emt 0:00:17] Weighted Error Value: White=1.18/Black=0.63.  Loses game:     	White=1     	---        Mistake:       	White=5     	Black=4      Inaccurate:     	White=4     	Black=2      OK:         	White=2     	Black=8      Best:        	White=2     	---        Strong:       	---       	Black=1} 0-1

[Event "NY Presidents Day Schiller-C 2024"]
[Site "New York"]
[Date "2024.02.19"]
[Round "8.2"]
[White "Quesada Vera, Liordis"]
[Black "Yoo, Eugene"]
[Result "1-0"]
[ECO "A04"]
[WhiteElo "2337"]
[BlackElo "2168"]
[Annotator "RC"]
[PlyCount "61"]
[EventDate "2024.02.14"]
[EventType "schev"]
[EventCountry "USA"]
[SourceTitle "playchess.com"]
[Source "ChessBase"]
[SourceQuality "1"]
[TimeControl "5400+30"]

1. Nf3 {[%emt 0:20:38]} c5 {[%emt 0:00:19]} 2. g3 {[%emt 0:00:44]} g6 {[%emt 0:01:24]} 3. Bg2 {[%emt 0:00:10]} Bg7 {[%emt 0:00:04]} 4. O-O {[%emt 0:00:12]} e5 {[%emt 0:01:59]} 5. c4 {[%emt 0:01:38]} Ne7 {[%emt 0:05:12]} 6. Nc3 {[%emt 0:00:10]} d5 {[%emt 0:06:56]} 7. cxd5 {[%emt 0:01:48]} Nxd5 {[%emt 0:00:05]} 8. Nxd5 {[%emt 0:00:05]} Qxd5 {[%emt 0:00:18]} 9. Ng5 {[%emt 0:00:07]} Qd8 {[%emt 0:07:12]} 10. Ne4 {[%emt 0:02:48]} Qe7 {[%emt 0:01:11]} 11. d3 {[%emt 0:05:46]} Na6 {[%emt 0:09:39]} 12. Bg5 {[%emt 0:04:05]} f6 {[%emt 0:02:20]} 13. Be3 {[%emt 0:01:20]} f5 {[%emt 0:04:19]} 14. Qa4+ {[%emt 0:08:22]} Bd7 {[%emt 0:16:12]} 15. Qb3 {[%emt 0:00:46]} Rb8 {[%emt 0:00:40]} 16. Bg5 {[%emt 0:00:36]} Qf8 {[%emt 0:04:01]} 17. Nc3 {[%emt 0:01:33]} Nc7 {[%emt 0:07:37]} 18. Nd5 {[%emt 0:15:05]} Ne6 {[%emt 0:01:31]} 19. Be7 {[%emt 0:01:45]} Qxe7 {[%emt 0:11:58]} 20. Nxe7 {[%emt 0:00:14]} Kxe7 {[%emt 0:00:02]} 21. Qa3 {[%emt 0:00:25]} a6 {[%emt 0:00:47]} 22. Rac1 {[%emt 0:01:18]} Bb5 {[%emt 0:04:34]} 23. Rxc5 {[%emt 0:02:16]} Nxc5 {[%emt 0:00:08]} 24. Qxc5+ {[%emt 0:00:05]} Kd7 {[%emt 0:00:44]} 25. Rc1 {[%emt 0:00:31]} Rhc8 {[%emt 0:03:30]} 26. Qd5+ {[%emt 0:00:11]} Ke7 {[%emt 0:00:02]} 27. Rxc8 {[%emt 0:00:15]} Rxc8 {[%emt 0:00:01]} 28. Qxb7+ {[%emt 0:00:12]} Bd7 {[%emt 0:00:03]} 29. Bd5 {[%emt 0:00:20]} a5 {[%emt 0:00:10]} 30. Bc4 {[%emt 0:00:11]} Rc5 {[%emt 0:00:34]} 31. Qb6 {[%emt 0:00:38]} 1-0

[Event "NY Presidents Day Schiller-C 2024"]
[Site "New York"]
[Date "2024.02.19"]
[Round "8.3"]
[White "Perez Avendano, Paul Omar"]
[Black "Liu, Kelsey"]
[Result "1/2-1/2"]
[ECO "B45"]
[WhiteElo "2213"]
[BlackElo "2004"]
[Annotator "RC"]
[PlyCount "108"]
[EventDate "2024.02.14"]
[EventType "schev"]
[EventCountry "USA"]
[SourceTitle "playchess.com"]
[Source "ChessBase"]
[SourceQuality "1"]
[TimeControl "5400+30"]

1. e4 {[%emt 0:00:52]} c5 {[%emt 0:00:07]} 2. Nf3 {[%emt 0:00:15]} e6 {[%emt 0:00:10]} 3. d4 {[%emt 0:00:16]} cxd4 {[%emt 0:00:04]} 4. Nxd4 {[%emt 0:00:07]} Nc6 {[%emt 0:00:02]} 5. Nc3 {[%emt 0:01:03]} Nf6 {[%emt 0:00:06]} 6. Nxc6 {[%emt 0:01:18]} bxc6 {[%emt 0:00:05]} 7. e5 {[%emt 0:01:01]} Nd5 {[%emt 0:00:10]} 8. Ne4 {[%emt 0:01:29]} Bb7 {[%emt 0:03:17]} 9. c4 {[%emt 0:02:16]} Nb4 {[%emt 0:00:44]} 10. c5 {[%emt 0:07:40]} Qb8 {[%emt 0:02:07]} 11. f4 {[%emt 0:03:01]} Ba6 {[%emt 0:00:34]} 12. a3 {[%emt 0:04:14]} Bxf1 {[%emt 0:03:38]} 13. Rxf1 {[%emt 0:01:44]} Nd5 {[%emt 0:02:57]} 14. Qd4 {[%emt 0:01:19]} Be7 {[%emt 0:01:46]} 15. f5 {[%emt 0:11:18]} exf5 {[%emt 0:00:58]} 16. Rxf5 {[%emt 0:00:20]} O-O {[%emt 0:01:12]} 17. Bg5 {[%emt 0:02:55]} Qb3 {[%emt 0:18:50]} 18. Rf3 {[%emt 0:17:59]} Qc2 {[%emt 0:03:24]} 19. Rf2 {[%emt 0:05:01]} Qb3 {[%emt 0:01:08]} 20. Nd2 {[%emt 0:00:43]} Qb5 {[%emt 0:04:18]} 21. Bxe7 {[%emt 0:00:58]} Nxe7 {[%emt 0:00:05]} 22. O-O-O {[%emt 0:00:50]} a5 {[%emt 0:01:22]} 23. h4 {[%emt 0:02:08]} a4 {[%emt 0:03:19]} 24. Nc4 {[%emt 0:01:37]} Nd5 {[%emt 0:00:52]} 25. Rd3 {[%emt 0:01:32]} Nc7 {[%emt 0:03:14]} 26. Nd6 {[%emt 0:31:34]} Qa5 {[%emt 0:00:52]} 27. Rc3 {[%emt 0:00:00]} Rab8 {[%emt 0:06:54]} 28. Kb1 {[%emt 0:00:00]} Ne6 {[%emt 0:08:39]} 29. Qc4 {[%emt 0:00:00]} Rb3 {[%emt 0:02:02]} 30. Rff3 {[%emt 0:00:00]} h6 {[%emt 0:11:36]} 31. Rxb3 {[%emt 0:00:00]} axb3 {[%emt 0:00:49]} 32. Rc3 {[%emt 0:00:00]} Rb8 {[%emt 0:00:12]} 33. g3 {[%emt 0:00:00]} Qa7 {[%emt 0:04:38]} 34. h5 {[%emt 0:00:00]} Qa5 {[%emt 0:00:16]} 35. g4 {[%emt 0:00:00]} Ng5 {[%emt 0:02:04]} 36. Qd3 {[%emt 0:00:00]} Ne6 {[%emt 0:01:07]} 37. Rxb3 {[%emt 0:00:00]} Qe1+ {[%emt 0:00:39]} 38. Ka2 {[%emt 0:00:00]} Rxb3 {[%emt 0:00:31]} 39. Qxb3 {[%emt 0:00:00]} Qxe5 {[%emt 0:00:10]} 40. Qb8+ {[%emt 0:00:00]} Nf8 {[%emt 0:00:45]} 41. a4 {[%emt 0:00:00]} Qxc5 {[%emt 0:00:21]} 42. Nf5 {[%emt 0:00:00]} d5 {[%emt 0:02:02]} 43. Qd6 {[%emt 0:02:15]} Qc4+ {[%emt 0:01:10]} 44. Ka3 {[%emt 0:00:13]} Qxg4 {[%emt 0:06:54]} 45. Ne7+ {[%emt 0:00:17]} Kh7 {[%emt 0:00:07]} 46. Nxc6 {[%emt 0:00:24]} Qf3+ {[%emt 0:00:16]} 47. b3 {[%emt 0:00:16]} Ne6 {[%emt 0:00:14]} 48. Qe5 {[%emt 0:01:39]} Nc5 {[%emt 0:05:02]} 49. Nd4 {[%emt 0:00:52]} Qc3 {[%emt 0:02:12]} 50. Qxd5 {[%emt 0:01:14]} Nd3 {[%emt 0:00:08]} 51. Qe4+ {[%emt 0:01:18]} Kg8 {[%emt 0:00:01]} 52. Qe8+ {[%emt 0:00:09]} Kh7 {[%emt 0:00:02]} 53. Qe4+ {[%emt 0:00:02]} Kg8 {[%emt 0:01:36]} 54. Qe8+ {[%emt 0:00:06]} Kh7 {[%emt 0:00:04]} 1/2-1/2

[Event "NY Presidents Day Schiller-C 2024"]
[Site "New York"]
[Date "2024.02.19"]
[Round "8.4"]
[White "Andrianov, Nikolai"]
[Black "Gaw, Chloe"]
[Result "1/2-1/2"]
[ECO "A03"]
[WhiteElo "2266"]
[BlackElo "1928"]
[Annotator "TA"]
[PlyCount "37"]
[EventDate "2024.02.14"]
[EventType "schev"]
[EventCountry "USA"]
[SourceTitle "playchess.com"]
[Source "ChessBase"]
[SourceQuality "1"]
[TimeControl "5400+30"]

{[%evp 21,37,33,65,50,58,72,53,48,57,42,148,139,143,116,106,50,49,26]} 1. Nf3 {[%emt 0:00:02]} d5 {[%emt 0:00:06]} 2. b3 {[%emt 0:00:08]} Nf6 {[%emt 0:01:01]} 3. Bb2 {[%emt 0:01:07]} c5 {[%emt 0:00:27]} 4. e3 {[%emt 0:00:06]} Nc6 {[%emt 1:30:56]} 5. Bb5 {[%emt 0:03:11]} Bd7 {[%emt 0:00:00]} 6. O-O {[%emt 0:01:44]} e6 {[%emt 0:00:00]} 7. d3 {[%emt 0:04:04]} Be7 {[%emt 0:00:00]} 8. Bxc6 {[%emt 0:01:05]} Bxc6 {[%emt 0:00:00]} 9. Ne5 {[%emt 0:00:14]} Qc7 {[%emt 0:00:00]} 10. Nd2 {[%emt 0:01:06]} Bd6 {[%emt 0:00:00]} 11. f4 {[%emt 0:00:38]} O-O-O {[%emt 0:00:00]} 12. Nxc6 {[%emt 0:05:08]} Qxc6 {[%emt 0:00:00]} 13. Qe2 {[%emt 0:02:26]} Qc7 {[%emt 0:00:00]} 14. Nf3 {[%emt 0:09:56]} d4 {[%emt 0:00:00]} 15. g3 {[%emt 0:01:06]} e5 {[%emt 0:00:00]} (15... dxe3 $14 16. Qxe3 Rhe8) 16. fxe5 $16 {[%emt 0:01:33]} Bxe5 {[%emt 0:00:00]} 17. Nxe5 {[%emt 0:00:20]} Qxe5 {[%emt 0:00:00]} 18. e4 {[%emt 0:00:15]} (18. Rae1 $16) 18... Qe6 $14 {[%emt 0:00:00]} 19. Qf3 {[%emt 0:07:21] Weighted Error Value: White=0.19 (very precise) /Black=0.33.  Mistake:       	White=1     	Black=1      OK:         	White=3     	Black=2} 1/2-1/2